bitfinex/quotes_SOLUSD_20250811
["timestamp","ask_amount","ask_price","bid_price","bid_amount"]
[1754888484463,0.06,185.99,185.98,25.13118333]
[1754888484875,0.06,186.0,185.98,25.13118333]
[1754888485174,0.06,186.0,185.99,64.16884664]
[1754888486367,0.06,186.0,185.99,69.54547979]
[1754888486571,0.06,186.0,185.99,68.96547979]
[1754888488275,0.06,186.01,186.0,15.10621557]
[1754888488461,0.06,186.03,186.0,25.13118333]
[1754888488653,0.06,186.03,186.01,85.42630495]
[1754888489284,0.06,186.03,186.01,84.84630495]
[1754888489671,0.06,186.03,186.01,84.30869945]
[1754888490558,0.06,186.03,186.01,89.6847545]
[1754888490877,0.06,186.03,186.01,45.82869945]
[1754888491079,0.76,186.02,186.01,84.30869945]
[1754888492285,0.76,186.02,186.01,173.90869945]
[1754888493768,6.13576604,186.02,186.01,128.08]
[1754888493985,0.76,186.02,186.01,38.48]
[1754888494157,0.06,186.02,186.01,58.30869945]
[1754888494364,0.06,186.02,186.01,64.2647545]
[1754888494560,0.06,186.02,186.01,64.80236]
[1754888495167,0.06,186.02,186.01,154.40236]
[1754888495364,0.06,186.03,186.02,41.10621557]
[1754888495565,0.06,186.04,186.02,136.00869945]
[1754888495886,5.37350222,186.1,186.02,136.00869945]
[1754888495887,0.7,186.1,186.07,15.10621557]
[1754888496085,5.37258905,186.13,186.09,4.72248388]
[1754888496284,5.37258905,186.13,186.1,43.18248388]
[1754888496780,6.07290479,186.12,186.1,43.18248388]
[1754888496981,5.37290479,186.12,186.11,4.72248388]
[1754888497486,6.07290479,186.12,186.11,4.72248388]
[1754888497681,0.7,186.12,186.11,19.82869945]
[1754888497890,0.8,186.16,186.12,15.10621557]
[1754888498063,0.8,186.16,186.11,5.25980052]
[1754888498064,6.17185875,186.16,186.13,53.56621557]
[1754888498269,0.1,186.16,186.13,58.28869945]
[1754888498672,5.47174395,186.16,186.13,58.28869945]
[1754888498894,0.8,186.14,186.13,58.28869945]
[1754888499380,0.1,186.14,186.13,58.28869945]
[1754888502168,0.1,186.14,186.13,58.82595835]
[1754888502372,0.1,186.14,186.13,59.40595835]
[1754888502998,0.1,186.14,186.13,64.7785474]
[1754888504272,0.1,186.16,186.15,45.82869945]
[1754888504493,0.1,186.16,186.15,84.78590063]
[1754888505081,0.1,186.16,186.15,90.15791244]
[1754888505483,0.1,186.16,186.15,90.73791244]
[1754888505703,0.1,186.16,186.15,64.73791244]
[1754888508708,0.1,186.16,186.15,154.33791244]
[1754888508911,0.1,186.16,186.15,153.80071126]
[1754888509400,0.06,186.2,186.19,26.0]
[1754888509591,0.06,186.2,186.19,178.9882691]
[1754888509917,0.06,186.2,186.19,178.45118333]
[1754888511110,0.06,186.2,186.19,179.09955717]
[1754888511614,0.06,186.2,186.19,183.82204105]
[1754888511812,0.06,186.2,186.19,179.09955717]
[1754888512112,0.06,186.2,186.19,183.82204105]
[1754888512703,0.06,186.2,186.19,94.32204105]
[1754888512915,0.06,186.2,186.19,56.45912682]
[1754888513217,0.06,186.2,186.19,90.11664294]
[1754888513597,0.06,186.2,186.19,95.41912682]
[1754888514209,0.06,186.2,186.19,94.83912682]
[1754888514533,0.06,186.2,186.19,90.11664294]
[1754888517193,0.06,186.2,186.19,179.61664294]
[1754888517393,0.06,186.2,186.19,179.07955717]
[1754888517811,0.06,186.2,186.19,89.57955717]
[1754888518001,0.06,186.2,186.19,90.11664294]
[1754888518914,0.06,186.2,186.19,95.41912682]
[1754888521500,0.06,186.2,186.19,94.83912682]
[1754888521712,0.06,186.2,186.19,57.03912682]
[1754888521917,0.06,186.2,186.19,95.39912682]
[1754888522836,0.06,186.23,186.22,41.10621557]
[1754888522995,0.06,186.23,186.22,84.72569869]
[1754888523531,0.06,186.23,186.22,85.30569869]
[1754888524708,0.06,186.23,186.22,90.67569117]
[1754888524912,0.06,186.24,186.23,15.10621557]
[1754888525104,0.06,186.24,186.23,20.40869945]
[1754888525432,0.06,186.25,186.23,20.40869945]
[1754888525741,0.06,186.25,186.24,59.28564103]
[1754888526809,0.06,186.25,186.24,64.07505683]
[1754888529012,0.06,186.25,186.24,154.15505683]
[1754888529331,0.06,186.25,186.24,153.61811525]
[1754888529706,0.1,186.27,186.25,19.82869945]
[1754888530032,0.1,186.27,186.25,20.3656122]
[1754888530924,0.1,186.27,186.25,25.73473971]
[1754888531232,0.1,186.27,186.26,15.10621557]
[1754888531438,0.1,186.27,186.26,58.14869945]
[1754888532705,5.36628141,186.35,186.31,41.10621557]
[1754888532916,5.36538255,186.38,186.34,19.82869945]
[1754888533130,5.36538255,186.38,186.35,38.32]
[1754888533720,0.66,186.37,186.35,38.32]
[1754888533912,0.66,186.37,186.35,43.04248388]
[1754888534116,0.66,186.37,186.35,38.32]
[1754888534837,5.36595836,186.36,186.35,53.42621557]
[1754888535038,6.02595836,186.36,186.35,58.14869945]
[1754888537512,0.66,186.36,186.35,58.14869945]
[1754888537706,6.02595836,186.36,186.35,58.14869945]
[1754888537937,6.02595836,186.36,186.35,53.42621557]
[1754888539472,24.16333814,186.36,186.32,26.0]
[1754888539742,5.38248388,186.35,186.33,38.3]
[1754888540121,0.66,186.34,186.33,38.3]
[1754888540329,5.38248388,186.34,186.27,4.72248388]
[1754888540535,0.66,186.33,186.28,15.10621557]
[1754888540740,0.66,186.33,186.29,38.3]
[1754888540960,4.72248388,186.31,186.29,38.3]
[1754888541129,0.66,186.3,186.29,38.3]
[1754888541527,10.7501704,186.3,186.23,15.10621557]
[1754888541832,5.38248388,186.29,186.25,15.10621557]
[1754888542033,5.38248388,186.29,186.25,53.40621557]
[1754888542245,0.66,186.28,186.25,15.10621557]
[1754888542436,0.66,186.28,186.25,53.40621557]
[1754888542834,5.38248388,186.28,186.25,53.40621557]
[1754888543029,0.66,186.27,186.25,89.5]
[1754888543346,0.66,186.27,186.25,127.8]
[1754888543522,5.36883925,186.26,186.25,142.90621557]
[1754888543727,6.02883925,186.26,186.25,104.60621557]
[1754888544371,0.66,186.26,186.25,104.60621557]
[1754888544730,5.38248388,186.26,186.25,104.60621557]
[1754888544931,0.66,186.26,186.25,104.60621557]
[1754888545548,6.02883925,186.26,186.25,104.60621557]
[1754888547633,10.75132313,186.26,186.23,0.03]
[1754888547855,0.66,186.25,186.23,0.03]
[1754888548044,0.66,186.25,186.24,4.72248388]
[1754888548253,5.36883925,186.26,186.24,4.72248388]
[1754888548560,5.36883925,186.26,186.25,4.72248388]
[1754888548941,6.02870087,186.27,186.24,53.88621557]
[1754888549157,6.02870087,186.27,186.24,58.60869945]
[1754888549456,0.66,186.26,186.24,58.60869945]
[1754888549643,0.66,186.26,186.25,4.72248388]
[1754888549958,0.71,186.27,186.25,4.72248388]
[1754888550150,5.36797466,186.29,186.24,58.60869945]
[1754888550350,0.71,186.28,186.24,53.88621557]
[1754888550552,0.71,186.27,186.25,4.72248388]
[1754888550857,0.71,186.27,186.24,53.88621557]
[1754888551058,0.71,186.27,186.25,4.72248388]
[1754888551855,5.36883925,186.26,186.25,4.72248388]
[1754888552166,6.07860084,186.27,186.24,53.88621557]
[1754888552464,6.07860084,186.27,186.25,4.72248388]
[1754888553047,5.36827588,186.28,186.26,4.72248388]
[1754888553245,6.07803699,186.29,186.27,4.72248388]
[1754888553432,6.07803699,186.29,186.28,4.72248388]
[1754888554044,0.71,186.29,186.28,4.72248388]
[1754888555077,5.36774075,186.3,186.28,4.72248388]
[1754888555244,5.36774075,186.3,186.29,4.72248388]
[1754888556471,5.36774075,186.3,186.28,93.50248388]
[1754888556649,6.07774075,186.3,186.28,93.50248388]
[1754888556848,0.71,186.29,186.28,93.50248388]
[1754888557772,6.07797466,186.29,186.28,93.50248388]
[1754888558473,5.36797466,186.29,186.28,93.50248388]
[1754888558763,5.36797466,186.29,186.28,88.78]
[1754888558764,6.07797466,186.29,186.28,88.78]
[1754888562163,13.41742303,186.33,186.28,88.78]
[1754888562164,5.36774795,186.3,186.28,93.50248388]
[1754888562848,5.36745085,186.31,186.28,93.50248388]
[1754888563070,5.36745085,186.31,186.29,4.72248388]
[1754888563283,6.13689863,186.33,186.3,4.72248388]
[1754888563575,0.06,186.33,186.32,4.72248388]
[1754888565461,0.77,186.33,186.32,4.72248388]
[1754888565659,0.77,186.33,186.31,38.26]
[1754888565848,0.71,186.32,186.31,38.26]
[1754888566050,5.36739842,186.31,186.3,38.26]
[1754888566275,6.07739842,186.31,186.3,38.26]
[1754888566477,6.07739842,186.31,186.29,42.98248388]
[1754888566976,0.71,186.3,186.25,4.75248388]
[1754888567176,4.72248388,186.3,186.26,38.26]
[1754888567383,0.71,186.29,186.26,38.26]
[1754888567759,0.71,186.28,186.26,38.26]
[1754888567962,6.0784812,186.28,186.25,30.75248388]
[1754888568278,6.0784812,186.28,186.26,38.26]
[1754888568656,5.3684812,186.28,186.26,38.26]
[1754888569276,0.06,186.33,186.28,15.10621557]
[1754888569477,0.06,186.33,186.32,4.72248388]
[1754888570585,0.06,186.33,186.32,5.43248388]
[1754888571077,0.06,186.33,186.32,20.53869945]
[1754888572354,0.06,186.33,186.32,25.90580979]
[1754888572773,0.06,186.33,186.32,20.53869945]
[1754888574373,0.06,186.33,186.32,25.90580979]
[1754888574765,0.06,186.33,186.32,20.53869945]
[1754888574968,0.06,186.33,186.32,15.81621557]
[1754888575171,0.06,186.33,186.32,20.53869945]
[1754888575862,0.06,186.33,186.32,19.82869945]
[1754888577259,0.77,186.33,186.32,4.72248388]
[1754888577486,0.77,186.33,186.32,42.94248388]
[1754888577887,0.06,186.33,186.32,58.04869945]
[1754888578084,0.77,186.33,186.31,26.0]
[1754888578291,0.77,186.33,186.31,64.22]
[1754888578472,0.71,186.32,186.31,64.22]
[1754888578887,6.07711034,186.32,186.31,64.22]
[1754888579189,6.07711034,186.32,186.31,64.72]
[1754888579582,0.71,186.32,186.31,64.72]
[1754888579780,5.42690011,186.33,186.31,69.44248388]
[1754888580091,0.06,186.33,186.31,69.44248388]
[1754888580488,5.42684192,186.33,186.31,69.44248388]
[1754888580791,0.06,186.33,186.31,69.44248388]
[1754888580975,5.4268573,186.33,186.31,69.44248388]
[1754888581966,5.41248388,186.32,186.25,6.106061]
[1754888582165,4.72248388,186.26,186.25,0.03]
[1754888582688,5.41248388,186.26,186.25,0.03]
[1754888583080,10.78132313,186.26,186.25,0.03]
[1754888584087,6.05883925,186.26,186.25,0.03]
[1754888584393,10.78132313,186.26,186.25,0.03]
[1754888585719,6.05883925,186.26,186.25,0.03]
[1754888586015,10.09109674,186.27,186.25,0.03]
[1754888586204,0.69,186.26,186.25,0.03]
[1754888586516,5.41248388,186.26,186.25,0.03]
[1754888587101,0.69,186.26,186.25,0.03]
[1754888587306,10.78132313,186.26,186.25,0.03]
[1754888587816,6.05883925,186.26,186.25,0.03]
[1754888588015,10.78132313,186.26,186.25,0.03]
[1754888589438,5.36883925,186.26,186.25,0.03]
[1754888589643,36.78132313,186.26,186.25,0.03]
[1754888590142,10.78132313,186.26,186.25,0.03]
[1754888590639,10.09132313,186.26,186.25,0.03]
[1754888591224,5.36883925,186.26,186.25,0.03]
[1754888593046,5.36857649,186.27,186.25,0.03]
[1754888593540,18.83200435,186.3,186.25,0.73]
[1754888593725,0.69,186.29,186.25,0.73]
[1754888593924,0.69,186.28,186.25,0.03]
[1754888595020,5.36855102,186.27,186.25,0.03]
[1754888595423,5.36855102,186.27,186.25,5.45248388]
[1754888596627,5.36797466,186.29,186.26,4.72248388]
[1754888596831,6.05797466,186.29,186.26,4.72248388]
[1754888597045,0.69,186.28,186.25,0.03]
[1754888597347,0.69,186.28,186.25,93.53248388]
[1754888597653,0.69,186.28,186.26,4.72248388]
[1754888598349,5.36797466,186.29,186.26,5.42248388]
[1754888598835,5.36797466,186.29,186.26,4.72248388]
[1754888599034,5.36797466,186.29,186.27,5.42248388]
[1754888599526,5.36797466,186.29,186.27,4.72248388]
[1754888599847,5.36797466,186.29,186.25,89.51]
[1754888599848,6.05797466,186.29,186.26,4.72248388]
[1754888601037,5.41248388,186.31,186.26,5.42248388]
[1754888601240,0.69,186.3,186.27,4.72248388]
[1754888603342,5.36797466,186.29,186.27,4.72248388]
[1754888603840,5.36797466,186.29,186.28,4.72248388]
[1754888605146,5.36797466,186.29,186.27,4.72248388]
[1754888605652,0.69,186.3,186.27,4.72248388]
[1754888605839,0.69,186.3,186.28,4.72248388]
[1754888606042,30.78248388,186.33,186.28,4.72248388]
[1754888606043,6.05713543,186.32,186.29,4.72248388]
[1754888606354,6.05713543,186.32,186.3,4.72248388]
[1754888606763,5.36713543,186.32,186.31,4.72248388]
[1754888607851,0.06,186.33,186.31,5.42248388]
[1754888608056,0.06,186.33,186.32,5.42248388]
[1754888608649,0.06,186.33,186.32,4.72248388]
[1754888609854,5.36711034,186.32,186.31,4.72248388]
[1754888610379,5.42689294,186.33,186.31,5.39248388]
[1754888610550,5.42689294,186.33,186.32,4.72248388]
[1754888611460,0.06,186.33,186.32,4.72248388]
[1754888611963,0.06,186.33,186.32,20.49869945]
[1754888613553,0.06,186.33,186.32,15.77621557]
[1754888613865,0.06,186.33,186.32,20.49869945]
[1754888614759,0.06,186.33,186.32,19.82869945]
[1754888615062,0.78,186.33,186.32,19.82869945]
[1754888615277,5.50248388,186.33,186.25,0.7]
[1754888615446,4.72248388,186.32,186.27,4.72248388]
[1754888615648,0.72,186.31,186.28,26.0]
[1754888615870,0.72,186.3,186.28,26.0]
[1754888616563,4.78248388,186.33,186.28,26.0]
[1754888616748,0.72,186.32,186.28,30.72248388]
[1754888616953,0.72,186.32,186.28,26.0]
[1754888617155,5.44248388,186.32,186.27,4.72248388]
[1754888617355,0.72,186.31,186.27,4.72248388]
[1754888617858,0.72,186.3,186.27,4.72248388]
[1754888618062,5.36797466,186.29,186.27,4.72248388]
[1754888618248,0.72,186.28,186.26,15.10621557]
[1754888618569,0.72,186.28,186.25,42.93248388]
[1754888619357,0.72,186.28,186.26,4.72248388]
[1754888619560,5.36797466,186.29,186.26,4.72248388]
[1754888620065,0.72,186.28,186.25,38.21]
[1754888620463,6.08875824,186.27,186.25,38.21]
[1754888620854,6.08875824,186.27,186.25,42.93248388]
[1754888621061,5.36875824,186.27,186.25,4.75248388]
[1754888621568,0.72,186.26,186.25,0.03]
[1754888622558,0.06,186.33,186.25,0.03]
[1754888622771,0.06,186.33,186.32,19.82869945]
[1754888622953,0.06,186.33,186.32,58.65869945]
[1754888624968,0.06,186.33,186.32,64.02580979]
[1754888628762,0.06,186.33,186.32,63.35580979]
[1754888629169,0.06,186.33,186.32,64.02580979]
[1754888629755,0.06,186.33,186.32,58.65869945]
[1754888633757,0.06,186.35,186.34,15.10621557]
[1754888633958,0.06,186.39,186.38,15.10621557]
[1754888634158,6.08280409,186.47,186.41,26.0]
[1754888634373,5.36314649,186.46,186.41,68.86248388]
[1754888634564,6.08314649,186.46,186.41,68.86248388]
[1754888634765,6.08341509,186.45,186.41,68.86248388]
[1754888644305,6.08341509,186.45,186.41,157.64248388]
[1754888647192,19.49183557,186.45,186.41,157.64248388]
[1754888647764,6.08341509,186.45,186.41,157.64248388]
[1754888648991,0.06,186.44,186.41,157.64248388]
[1754888650873,0.06,186.44,186.41,119.50248388]
[1754888651187,0.06,186.44,186.41,157.62248388]
[1754888652093,0.06,186.44,186.41,158.31248388]
[1754888653386,0.06,186.44,186.41,163.67700295]
[1754888653781,0.06,186.44,186.41,165.82378895]
[1754888654980,0.06,186.44,186.41,163.67700295]
[1754888655181,0.06,186.44,186.41,158.31248388]
[1754888659394,0.06,186.44,186.41,160.45926988]
[1754888659873,0.06,186.44,186.41,158.31248388]
[1754888660291,0.06,186.44,186.41,157.62248388]
[1754888662078,0.06,186.44,186.41,178.78321852]
[1754888662478,0.06,186.44,186.41,180.92977552]
[1754888666580,0.06,186.44,186.42,15.10621557]
[1754888666887,0.06,186.44,186.43,68.82248388]
[1754888667681,0.77,186.44,186.43,68.82248388]
[1754888669001,0.06,186.44,186.43,68.82248388]
[1754888669782,0.06,186.44,186.43,30.72248388]
[1754888669998,0.06,186.44,186.43,68.82248388]
[1754888670899,0.06,186.44,186.43,157.60248388]
[1754888671106,0.06,186.44,186.43,68.82248388]
[1754888671883,0.06,186.44,186.43,179.26903737]
[1754888672086,0.06,186.44,186.43,178.73264302]
[1754888672888,0.06,186.44,186.43,152.73264302]
[1754888674304,0.06,186.44,186.43,147.36869945]
[1754888675180,0.06,186.44,186.43,152.73264302]
[1754888675383,0.06,186.44,186.43,168.88264302]
[1754888675584,0.06,186.46,186.45,15.10621557]
[1754888675783,0.06,186.46,186.45,57.90869945]
[1754888676292,0.06,186.48,186.47,41.10621557]
[1754888676483,0.06,186.48,186.47,172.68869945]
[1754888676688,0.06,186.48,186.47,173.34869945]
[1754888677292,0.06,186.48,186.47,140.63149239]
[1754888677498,0.06,186.48,186.47,178.71149239]
[1754888678206,0.06,186.48,186.47,194.80548139]
[1754888679685,0.06,186.48,186.47,151.36268845]
[1754888680008,0.76,186.48,186.47,134.60869945]
[1754888680188,0.76,186.48,186.47,172.68869945]
[1754888680390,0.06,186.48,186.47,172.68869945]
[1754888682229,0.06,186.48,186.47,188.78268845]
[1754888682390,0.06,186.48,186.47,194.14548139]
[1754888683488,20.88579777,186.52,186.49,15.10621557]
[1754888683692,21.58579777,186.52,186.51,19.82869945]
[1754888684614,20.88579777,186.52,186.51,45.82869945]
[1754888684796,20.88579777,186.52,186.51,139.91034225]
[1754888685207,20.88579777,186.52,186.51,140.57034225]
[1754888685403,20.88579777,186.52,186.51,114.57034225]
[1754888686208,20.88579777,186.52,186.51,115.10650653]
[1754888686409,0.06,186.54,186.53,41.10621557]
[1754888686709,0.06,186.54,186.53,173.14480624]
[1754888686912,0.06,186.54,186.53,173.26869945]
[1754888687495,0.7,186.59,186.54,15.10621557]
[1754888687694,0.7,186.59,186.58,19.82869945]
[1754888687908,0.7,186.59,186.58,57.88869945]
[1754888688504,0.7,186.59,186.58,53.16621557]
[1754888688701,0.7,186.59,186.58,57.88869945]
[1754888689207,0.7,186.59,186.51,88.72]
[1754888689517,24.18018793,186.59,186.53,4.72248388]
[1754888689700,24.18018793,186.59,186.52,38.06]
[1754888689701,0.7,186.58,186.56,4.72248388]
[1754888689907,0.7,186.58,186.57,38.06]
[1754888690614,0.7,186.58,186.57,42.78248388]
[1754888691713,6.05963125,186.58,186.57,42.78248388]
[1754888692117,0.7,186.58,186.57,42.78248388]
[1754888692324,0.7,186.58,186.57,57.88869945]
[1754888692619,5.35911057,186.6,186.57,57.88869945]
[1754888692837,0.7,186.58,186.57,53.16621557]
[1754888693001,0.76,186.58,186.57,57.88869945]
[1754888693702,0.06,186.58,186.57,57.88869945]
[1754888694430,0.06,186.58,186.57,63.24861797]
[1754888694838,0.06,186.58,186.57,58.52613409]
[1754888695140,0.06,186.58,186.57,57.88869945]
[1754888695302,0.76,186.58,186.57,57.88869945]
[1754888697612,6.11963125,186.58,186.57,19.82869945]
[1754888697815,6.11963125,186.58,186.57,57.86869945]
[1754888698531,6.11963125,186.58,186.57,19.82869945]
[1754888698704,6.11963125,186.58,186.57,57.86869945]
[1754888700227,6.11963125,186.58,186.55,4.72248388]
[1754888700439,6.11963125,186.58,186.53,4.75248388]
[1754888700440,0.67,186.57,186.53,4.75248388]
[1754888700620,0.67,186.57,186.54,38.04]
[1754888701435,0.67,186.57,186.54,42.76248388]
[1754888701613,0.67,186.57,186.55,4.72248388]
[1754888702135,5.36020583,186.56,186.55,4.72248388]
[1754888702509,6.03020583,186.56,186.54,38.04]
[1754888702724,0.67,186.55,186.54,38.04]
[1754888703614,5.36020583,186.56,186.54,42.76248388]
[1754888703810,5.36020583,186.56,186.55,4.72248388]
[1754888704207,5.41963125,186.58,186.55,4.72248388]
[1754888704408,5.41963125,186.58,186.57,4.72248388]
[1754888704610,5.41963125,186.58,186.57,42.76248388]
[1754888706439,0.06,186.58,186.57,131.48248388]
[1754888706740,0.06,186.58,186.57,146.58869945]
[1754888706938,0.06,186.58,186.57,142.56621557]
[1754888707149,0.06,186.58,186.57,57.86869945]
[1754888707613,0.06,186.58,186.57,147.28869945]
[1754888708828,0.06,186.58,186.57,109.24869945]
[1754888709027,0.06,186.58,186.57,146.58869945]
[1754888711318,0.73,186.58,186.57,88.72]
[1754888711528,0.73,186.58,186.57,38.04]
[1754888711828,0.06,186.58,186.57,42.76248388]
[1754888712032,0.06,186.58,186.57,57.86869945]
[1754888712814,0.06,186.58,186.57,58.56869945]
[1754888713731,0.06,186.58,186.57,57.86869945]
[1754888714117,0.73,186.58,186.53,89.45]
[1754888714323,0.06,186.58,186.57,4.72248388]
[1754888714650,0.06,186.58,186.57,42.74248388]
[1754888714816,6.08971232,186.58,186.57,38.02]
[1754888717424,6.08971232,186.58,186.57,42.74248388]
[1754888718024,6.08971232,186.58,186.57,38.02]
[1754888719229,5.41971232,186.58,186.57,42.74248388]
[1754888719536,5.41963125,186.58,186.57,42.74248388]
[1754888719943,0.06,186.58,186.57,42.74248388]
[1754888721436,0.73,186.58,186.57,38.02]
[1754888721636,0.73,186.58,186.56,4.72248388]
[1754888721835,0.73,186.58,186.57,38.02]
[1754888722655,6.08963125,186.58,186.57,38.02]
[1754888724250,6.08963125,186.58,186.56,38.02]
[1754888724446,0.06,186.58,186.55,4.72248388]
[1754888724742,0.67,186.57,186.56,38.02]
[1754888725448,0.06,186.58,186.56,42.74248388]
[1754888725750,0.73,186.58,186.56,42.74248388]
[1754888726849,5.35991852,186.57,186.56,42.74248388]
[1754888728835,0.06,186.58,186.56,42.74248388]
[1754888728836,5.41963125,186.58,186.56,42.74248388]
[1754888729231,6.08963125,186.58,186.56,42.74248388]
[1754888729452,0.67,186.57,186.56,42.74248388]
[1754888730051,5.41963125,186.58,186.56,42.74248388]
[1754888730239,6.08963125,186.58,186.56,42.74248388]
[1754888730954,0.06,186.58,186.56,42.74248388]
[1754888734065,0.06,186.58,186.57,4.72248388]
[1754888735026,0.06,186.58,186.56,42.74248388]
[1754888735229,0.06,186.58,186.57,4.72248388]
[1754888735825,0.06,186.58,186.57,42.74248388]
[1754888738027,0.06,186.58,186.57,38.02]
[1754888738231,0.73,186.58,186.57,38.02]
[1754888738439,0.73,186.58,186.54,88.75]
[1754888738641,0.06,186.58,186.55,42.72248388]
[1754888738843,0.67,186.57,186.55,42.72248388]
[1754888739450,0.67,186.57,186.56,4.72248388]
[1754888739647,0.06,186.58,186.56,4.72248388]
[1754888739972,0.06,186.58,186.57,43.42248388]
[1754888741537,0.06,186.58,186.57,58.52869945]
[1754888742459,0.06,186.58,186.57,147.24869945]
[1754888742973,0.06,186.58,186.57,146.54869945]
[1754888743162,0.06,186.58,186.57,131.44248388]
[1754888743475,0.73,186.58,186.57,93.44248388]
[1754888743757,0.06,186.58,186.57,131.44248388]
[1754888744542,0.73,186.58,186.57,126.72]
[1754888744744,0.73,186.58,186.57,131.44248388]
[1754888745059,0.06,186.58,186.57,131.44248388]
[1754888746737,0.06,186.58,186.57,147.24869945]
[1754888747464,0.06,186.58,186.57,109.24869945]
[1754888747660,0.06,186.58,186.57,147.24869945]
[1754888748741,0.06,186.58,186.57,108.54869945]
[1754888748948,0.06,186.58,186.57,146.54869945]
[1754888749464,0.06,186.58,186.57,108.54869945]
[1754888749664,0.06,186.58,186.57,146.54869945]
[1754888752051,0.06,186.58,186.57,147.22869945]
[1754888754244,0.06,186.58,186.57,109.24869945]
[1754888754452,0.06,186.58,186.57,147.22869945]
[1754888754752,0.06,186.58,186.57,109.24869945]
[1754888755073,0.06,186.58,186.57,147.22869945]
[1754888755272,0.06,186.58,186.57,142.50621557]
[1754888755573,0.06,186.58,186.57,147.22869945]
[1754888756446,0.06,186.58,186.57,152.58861797]
[1754888756779,0.06,186.58,186.57,147.22869945]
[1754888758863,0.06,186.58,186.57,146.52869945]
[1754888759053,0.06,186.58,186.57,147.22869945]
[1754888760544,0.06,186.58,186.57,146.52869945]
[1754888761657,0.06,186.58,186.57,108.54869945]
[1754888761866,0.06,186.58,186.57,146.52869945]
[1754888764360,0.06,186.58,186.57,147.19869945]
[1754888764776,0.06,186.58,186.57,142.47621557]
[1754888764964,0.06,186.58,186.57,147.19869945]
[1754888767081,0.06,186.58,186.57,109.21869945]
[1754888767258,0.06,186.58,186.57,147.19869945]
[1754888768465,0.06,186.58,186.57,152.55861797]
[1754888770268,0.06,186.58,186.57,147.19869945]
[1754888770779,0.06,186.58,186.57,108.54869945]
[1754888770963,0.74,186.58,186.57,146.50869945]
[1754888771485,0.06,186.58,186.57,146.50869945]
[1754888772768,0.06,186.58,186.57,108.54869945]
[1754888773152,0.06,186.58,186.57,146.50869945]
[1754888773376,0.06,186.58,186.57,108.54869945]
[1754888773583,0.06,186.58,186.57,146.50869945]
[1754888774583,0.06,186.58,186.57,141.78621557]
[1754888774770,0.06,186.58,186.57,146.50869945]
[1754888775684,0.06,186.58,186.57,108.54869945]
[1754888775866,0.06,186.58,186.57,146.50869945]
[1754888776359,0.74,186.58,186.57,108.54869945]
[1754888776561,0.06,186.58,186.57,146.50869945]
[1754888778961,0.06,186.58,186.57,147.17869945]
[1754888779162,0.06,186.58,186.57,152.53861797]
[1754888783089,0.06,186.6,186.59,41.10621557]
[1754888783294,0.06,186.6,186.59,88.51118333]
[1754888783497,0.06,186.6,186.59,177.23118333]
[1754888784471,0.06,186.6,186.59,177.90118333]
[1754888785700,0.06,186.6,186.59,183.26052734]
[1754888786190,0.06,186.6,186.59,172.48869945]
[1754888786394,0.74,186.6,186.59,134.54869945]
[1754888786998,0.74,186.6,186.59,172.48869945]
[1754888788188,0.06,186.6,186.59,172.48869945]
[1754888790793,0.06,186.6,186.59,167.76621557]
[1754888791000,0.06,186.6,186.59,172.48869945]
[1754888797104,0.06,186.6,186.59,177.21118333]
[1754888797401,0.06,186.6,186.59,183.23052734]
[1754888799502,0.06,186.6,186.59,177.87118333]
[1754888799704,0.06,186.6,186.59,172.48869945]
[1754888805086,0.06,186.6,186.59,168.42621557]
[1754888805281,0.74,186.6,186.59,134.54869945]
[1754888805482,0.74,186.6,186.59,108.54869945]
[1754888805683,0.74,186.6,186.59,57.74869945]